[Event "*** Titled Tuesday Blitz"]
[Site "Chess.com"]
[Date "2019.08.06"]
[Round "4"]
[White "Chess_Boxer123"]
[Black "OparinGrigoriy"]
[Result "1-0"]
[WhiteElo "2425"]
[BlackElo "2979"]
[TimeControl "180+2"]
[EndTime "13:47:31 PDT"]
[Termination "Chess_Boxer123 won by resignation"]

1. d4 {[%clk 0:02:02.8]} 1... f5 {[%clk 0:03:00.2]} 2. Nf3 {[%clk 0:01:49.6]}
2... Nf6 {[%clk 0:03:01.5]} 3. g3 {[%clk 0:01:44.8]} 3... g6 {[%clk 0:03:03]} 4.
Bg2 {[%clk 0:01:39.8]} 4... Bg7 {[%clk 0:03:04.6]} 5. O-O {[%clk 0:01:39.8]}
5... O-O {[%clk 0:03:06.5]} 6. c4 {[%clk 0:01:40.4]} 6... d6 {[%clk 0:03:08.4]}
7. Nc3 {[%clk 0:01:41.1]} 7... c6 {[%clk 0:03:10]} 8. d5 {[%clk 0:01:42.2]} 8...
e5 {[%clk 0:03:11.2]} 9. dxe6 {[%clk 0:01:43.1]} 9... Bxe6 {[%clk 0:03:12.8]}
10. b3 {[%clk 0:01:34.3]} 10... Qe7 {[%clk 0:03:09.4]} 11. Bb2 {[%clk
0:01:33.9]} 11... Na6 {[%clk 0:03:10.3]} 12. Rc1 {[%clk 0:01:33]} 12... Rad8
{[%clk 0:03:11]} 13. Nd4 {[%clk 0:01:33.8]} 13... Bc8 {[%clk 0:03:11]} 14. Re1
{[%clk 0:01:33.9]} 14... Nc5 {[%clk 0:03:12.2]} 15. Qc2 {[%clk 0:01:33.8]} 15...
h5 {[%clk 0:03:11.8]} 16. h4 {[%clk 0:01:33.7]} 16... Nfe4 {[%clk 0:03:08.6]}
17. Rcd1 {[%clk 0:01:31.7]} 17... Nxc3 {[%clk 0:03:04.8]} 18. Bxc3 {[%clk
0:01:33.6]} 18... f4 {[%clk 0:03:06.7]} 19. Qxg6 {[%clk 0:01:33.2]} 19... fxg3
{[%clk 0:03:05.3]} 20. Qxg3 {[%clk 0:01:29.7]} 20... Ne4 {[%clk 0:03:05.2]} 21.
Bxe4 {[%clk 0:01:27.1]} 21... Qxe4 {[%clk 0:03:05.3]} 22. Ne6 {[%clk 0:01:20.7]}
22... Rd7 {[%clk 0:02:42]} 23. Bxg7 {[%clk 0:01:19.5]} 23... Qxe6 {[%clk
0:02:40.8]} 24. Bxf8+ {[%clk 0:01:13.7]} 24... Kxf8 {[%clk 0:02:42.7]} 25. Qf4+
{[%clk 0:01:15]} 25... Kg8 {[%clk 0:02:12.7]} 26. Kh2 {[%clk 0:01:14.6]} 26...
Qh3+ {[%clk 0:02:08.1]} 27. Kxh3 {[%clk 0:01:14.7]} 1-0

[Event "*** Titled Tuesday Blitz"]
[Site "Chess.com"]
[Date "2019.08.06"]
[Round "4"]
[White "colegiodemadrid"]
[Black "alturas_pacificas"]
[Result "1-0"]
[WhiteElo "2332"]
[BlackElo "2238"]
[TimeControl "180+2"]
[EndTime "13:47:43 PDT"]
[Termination "colegiodemadrid won by resignation"]

1. e4 {[%clk 0:03:01.9]} 1... e5 {[%clk 0:03:00.3]} 2. Nf3 {[%clk 0:03:03.3]}
2... Nf6 {[%clk 0:02:59.3]} 3. Nxe5 {[%clk 0:03:03.7]} 3... d6 {[%clk
0:02:59.8]} 4. Nf3 {[%clk 0:03:05.3]} 4... Nxe4 {[%clk 0:03:00.9]} 5. Nc3 {[%clk
0:03:06]} 5... Nxc3 {[%clk 0:03:00.8]} 6. dxc3 {[%clk 0:03:07.9]} 6... Be7
{[%clk 0:03:01.9]} 7. Be3 {[%clk 0:03:09.4]} 7... Be6 {[%clk 0:02:59.2]} 8. Qd2
{[%clk 0:03:10.4]} 8... Nc6 {[%clk 0:03:00.2]} 9. Bd3 {[%clk 0:03:09.9]} 9... a6
{[%clk 0:03:00.9]} 10. h4 {[%clk 0:03:11.2]} 10... h6 {[%clk 0:03:01.4]} 11.
O-O-O {[%clk 0:03:09.8]} 11... Qd7 {[%clk 0:02:38.1]} 12. Kb1 {[%clk 0:03:08.1]}
12... O-O-O {[%clk 0:02:37]} 13. Nd4 {[%clk 0:03:07.1]} 13... Nxd4 {[%clk
0:02:30.3]} 14. cxd4 {[%clk 0:03:09]} 14... Kb8 {[%clk 0:02:27.3]} 15. c4 {[%clk
0:02:59.2]} 15... Bf5 {[%clk 0:02:07.1]} 16. d5 {[%clk 0:02:55.2]} 16... Bxd3+
{[%clk 0:01:57.6]} 17. Qxd3 {[%clk 0:02:57.1]} 17... Bf6 {[%clk 0:01:58.7]} 18.
Qc2 {[%clk 0:02:39.8]} 18... Rhe8 {[%clk 0:01:37]} 19. Rd3 {[%clk 0:02:40.2]}
19... Qf5 {[%clk 0:01:33.4]} 20. g3 {[%clk 0:02:39.3]} 20... h5 {[%clk
0:01:08.8]} 21. Rhd1 {[%clk 0:02:40.5]} 21... g6 {[%clk 0:01:07.6]} 22. c5
{[%clk 0:02:41.4]} 22... Be7 {[%clk 0:00:49.7]} 23. c6 {[%clk 0:02:38.8]} 23...
b6 {[%clk 0:00:45.7]} 24. Bxb6 {[%clk 0:02:32.4]} 24... cxb6 {[%clk 0:00:44]}
25. c7+ {[%clk 0:02:33.3]} 25... Ka7 {[%clk 0:00:45.2]} 26. cxd8=Q {[%clk
0:02:32.8]} 26... Bxd8 {[%clk 0:00:44.2]} 27. Re3 {[%clk 0:02:27.8]} 27... Qxc2+
{[%clk 0:00:36.2]} 28. Kxc2 {[%clk 0:02:29.7]} 28... Rxe3 {[%clk 0:00:36.2]} 29.
fxe3 {[%clk 0:02:31.6]} 29... Bf6 {[%clk 0:00:37.1]} 30. Rf1 {[%clk 0:02:31.5]}
30... Be5 {[%clk 0:00:38.6]} 31. Rxf7+ {[%clk 0:02:32.9]} 1-0

[Event "*** Titled Tuesday Blitz"]
[Site "Chess.com"]
[Date "2019.08.06"]
[Round "4"]
[White "raviteja81293"]
[Black "Yaacovn"]
[Result "1-0"]
[WhiteElo "2610"]
[BlackElo "2813"]
[TimeControl "180+2"]
[EndTime "13:47:44 PDT"]
[Termination "raviteja81293 won by resignation"]

1. d4 {[%clk 0:03:01.9]} 1... Nf6 {[%clk 0:02:58.1]} 2. Nf3 {[%clk 0:03:03]}
2... d6 {[%clk 0:02:59.2]} 3. c4 {[%clk 0:03:02.8]} 3... Nc6 {[%clk 0:02:59.1]}
4. Nc3 {[%clk 0:03:03.6]} 4... e5 {[%clk 0:02:59.7]} 5. g3 {[%clk 0:03:04.7]}
5... Bg4 {[%clk 0:02:59.4]} 6. d5 {[%clk 0:02:53]} 6... Nb8 {[%clk 0:02:59.4]}
7. Bg2 {[%clk 0:02:54.3]} 7... Be7 {[%clk 0:02:54.8]} 8. O-O {[%clk 0:02:55]}
8... O-O {[%clk 0:02:55.6]} 9. Qb3 {[%clk 0:02:56]} 9... Qc8 {[%clk 0:02:54.9]}
10. e4 {[%clk 0:02:54.9]} 10... Nbd7 {[%clk 0:02:55.5]} 11. Be3 {[%clk
0:02:56.1]} 11... b6 {[%clk 0:02:54.7]} 12. Qc2 {[%clk 0:02:55.6]} 12... a5
{[%clk 0:02:54.9]} 13. a3 {[%clk 0:02:56.2]} 13... Nc5 {[%clk 0:02:48.6]} 14.
Nd2 {[%clk 0:02:43.4]} 14... Bh3 {[%clk 0:02:47]} 15. b4 {[%clk 0:02:42.8]}
15... Bxg2 {[%clk 0:02:47.6]} 16. Kxg2 {[%clk 0:02:43.2]} 16... Ncd7 {[%clk
0:02:48.1]} 17. f3 {[%clk 0:02:41.5]} 17... Ne8 {[%clk 0:02:48.2]} 18. Nb3
{[%clk 0:02:35.3]} 18... g6 {[%clk 0:02:44.1]} 19. bxa5 {[%clk 0:02:36.2]} 19...
bxa5 {[%clk 0:02:44.8]} 20. Na4 {[%clk 0:02:31.2]} 20... f5 {[%clk 0:02:44.6]}
21. c5 {[%clk 0:02:32.6]} 21... Nef6 {[%clk 0:02:39.2]} 22. c6 {[%clk
0:02:29.8]} 22... Nb8 {[%clk 0:02:38.5]} 23. Bh6 {[%clk 0:02:18.7]} 23... Rf7
{[%clk 0:02:38.7]} 24. Rab1 {[%clk 0:02:19.8]} 24... Qa6 {[%clk 0:02:38.4]} 25.
Nc3 {[%clk 0:02:10]} 25... Qc4 {[%clk 0:02:32.8]} 26. Nd2 {[%clk 0:02:10.6]}
26... Qc5 {[%clk 0:02:30.2]} 27. Rb5 {[%clk 0:01:55.8]} 27... Qa7 {[%clk
0:02:21.7]} 28. Rb7 {[%clk 0:01:55]} 28... Qa6 {[%clk 0:02:22.4]} 29. Rfb1
{[%clk 0:01:55.3]} 29... fxe4 {[%clk 0:02:22.2]} 30. Rxb8+ {[%clk 0:01:55.8]}
30... Rxb8 {[%clk 0:02:22.6]} 31. Rxb8+ {[%clk 0:01:57.7]} 31... Bf8 {[%clk
0:02:23.4]} 32. Ndxe4 {[%clk 0:01:54.2]} 32... Nxe4 {[%clk 0:02:11.5]} 33. Nxe4
{[%clk 0:01:52.7]} 33... Qa7 {[%clk 0:02:09.8]} 34. Qb2 {[%clk 0:01:47.5]} 34...
Qa6 {[%clk 0:02:02]} 35. Rxf8+ {[%clk 0:01:44.8]} 35... Rxf8 {[%clk 0:02:02.7]}
36. Bxf8 {[%clk 0:01:46.4]} 1-0

[Event "*** Titled Tuesday Blitz"]
[Site "Chess.com"]
[Date "2019.08.06"]
[Round "4"]
[White "dmosesov"]
[Black "Msb2"]
[Result "0-1"]
[WhiteElo "2548"]
[BlackElo "2853"]
[TimeControl "180+2"]
[EndTime "13:47:54 PDT"]
[Termination "Msb2 won by resignation"]

1. d4 {[%clk 0:02:58.6]} 1... Nf6 {[%clk 0:02:58.2]} 2. Nf3 {[%clk 0:02:55.2]}
2... d5 {[%clk 0:02:59]} 3. c4 {[%clk 0:02:56.5]} 3... e6 {[%clk 0:03:00.1]} 4.
Nc3 {[%clk 0:02:57.8]} 4... Bb4 {[%clk 0:03:01.1]} 5. Bg5 {[%clk 0:02:58.5]}
5... h6 {[%clk 0:03:01.9]} 6. Bxf6 {[%clk 0:02:59.8]} 6... Qxf6 {[%clk
0:03:03.8]} 7. e3 {[%clk 0:03:01.4]} 7... O-O {[%clk 0:03:03.5]} 8. Rc1 {[%clk
0:03:02.1]} 8... Nc6 {[%clk 0:03:04.9]} 9. a3 {[%clk 0:02:53.4]} 9... Bxc3+
{[%clk 0:03:05.9]} 10. Rxc3 {[%clk 0:02:55.3]} 10... dxc4 {[%clk 0:03:07.6]} 11.
Bxc4 {[%clk 0:02:53.7]} 11... e5 {[%clk 0:03:08.4]} 12. d5 {[%clk 0:01:59.1]}
12... Ne7 {[%clk 0:03:08.8]} 13. O-O {[%clk 0:01:56.5]} 13... Bg4 {[%clk
0:02:58.3]} 14. Be2 {[%clk 0:01:56.8]} 14... Rad8 {[%clk 0:02:57.9]} 15. e4
{[%clk 0:01:07.4]} 15... c6 {[%clk 0:02:59]} 16. h3 {[%clk 0:01:07.7]} 16... Bh5
{[%clk 0:02:53.7]} 17. Qb3 {[%clk 0:01:03]} 17... cxd5 {[%clk 0:02:53.8]} 18.
Qxb7 {[%clk 0:00:33]} 18... Rb8 {[%clk 0:02:53.5]} 19. Qa6 {[%clk 0:00:17.7]}
19... dxe4 {[%clk 0:02:46.8]} 20. Nd2 {[%clk 0:00:18.5]} 20... Bxe2 {[%clk
0:02:35.9]} 21. Qxe2 {[%clk 0:00:20.4]} 21... Rxb2 {[%clk 0:02:37.5]} 22. Qe3
{[%clk 0:00:19.9]} 22... Nd5 {[%clk 0:02:35.3]} 23. Nxe4 {[%clk 0:00:21.2]}
23... Qg6 {[%clk 0:02:34.5]} 24. Qxa7 {[%clk 0:00:06.3]} 24... Qxe4 {[%clk
0:02:34.1]} 0-1

[Event "*** Titled Tuesday Blitz"]
[Site "Chess.com"]
[Date "2019.08.06"]
[Round "4"]
[White "imdvb6307"]
[Black "Mops_2004"]
[Result "1-0"]
[WhiteElo "2418"]
[BlackElo "2509"]
[TimeControl "180+2"]
[EndTime "13:48:02 PDT"]
[Termination "imdvb6307 won by resignation"]

1. c4 {[%clk 0:03:01.9]} 1... g6 {[%clk 0:03:00.2]} 2. Nf3 {[%clk 0:02:57.9]}
2... Bg7 {[%clk 0:03:01.3]} 3. d4 {[%clk 0:02:57.4]} 3... Nf6 {[%clk 0:03:02]}
4. Nc3 {[%clk 0:02:57.4]} 4... O-O {[%clk 0:03:03]} 5. e4 {[%clk 0:02:57.8]}
5... d6 {[%clk 0:03:04.1]} 6. Be2 {[%clk 0:02:58.8]} 6... e5 {[%clk 0:03:05.3]}
7. O-O {[%clk 0:02:59.1]} 7... Nc6 {[%clk 0:03:05.1]} 8. d5 {[%clk 0:02:55.4]}
8... Ne7 {[%clk 0:03:05.6]} 9. Ne1 {[%clk 0:02:56.9]} 9... Nd7 {[%clk
0:03:06.8]} 10. f3 {[%clk 0:02:58.3]} 10... f5 {[%clk 0:03:08.2]} 11. g4 {[%clk
0:03:00]} 11... Kh8 {[%clk 0:03:01.9]} 12. Be3 {[%clk 0:03:00.2]} 12... Ng8
{[%clk 0:02:59]} 13. Qd2 {[%clk 0:03:01]} 13... f4 {[%clk 0:02:22.9]} 14. Bf2
{[%clk 0:03:01.5]} 14... h5 {[%clk 0:02:24.4]} 15. h3 {[%clk 0:03:02.4]} 15...
Bf6 {[%clk 0:02:24.4]} 16. Nd3 {[%clk 0:03:02.2]} 16... Bh4 {[%clk 0:02:24.8]}
17. Qe1 {[%clk 0:03:03.3]} 17... Bxf2+ {[%clk 0:02:25.3]} 18. Qxf2 {[%clk
0:03:04.6]} 18... Ngf6 {[%clk 0:02:04.4]} 19. Kg2 {[%clk 0:03:03.5]} 19... Kg7
{[%clk 0:02:04.9]} 20. g5 {[%clk 0:03:02.4]} 20... Ne8 {[%clk 0:02:04.6]} 21. h4
{[%clk 0:03:03.4]} 21... c5 {[%clk 0:02:03.3]} 22. dxc6 {[%clk 0:03:02.7]} 22...
bxc6 {[%clk 0:02:04.1]} 23. c5 {[%clk 0:03:04.2]} 23... dxc5 {[%clk 0:01:59]}
24. Nxc5 {[%clk 0:03:03]} 24... Nxc5 {[%clk 0:02:00.1]} 25. Qxc5 {[%clk
0:03:03.1]} 25... Qd6 {[%clk 0:02:01.2]} 26. Na4 {[%clk 0:02:45.1]} 26... Qxc5
{[%clk 0:01:42.6]} 27. Nxc5 {[%clk 0:02:45.6]} 27... Rb8 {[%clk 0:01:44]} 28. b3
{[%clk 0:02:43.1]} 28... Nc7 {[%clk 0:01:44.6]} 29. Rac1 {[%clk 0:02:29.1]}
29... Nb5 {[%clk 0:01:18.2]} 30. Bxb5 {[%clk 0:02:27.5]} 30... cxb5 {[%clk
0:01:19.4]} 31. Nd3 {[%clk 0:02:22.3]} 31... Rd8 {[%clk 0:01:14.5]} 32. Nxe5
{[%clk 0:02:22.2]} 32... Bb7 {[%clk 0:01:13.7]} 33. Rc7+ {[%clk 0:02:19.6]}
33... Kg8 {[%clk 0:01:15]} 34. Nxg6 {[%clk 0:02:19.5]} 34... Rd2+ {[%clk
0:01:16.4]} 35. Rf2 {[%clk 0:02:20]} 35... Rxf2+ {[%clk 0:01:13.4]} 36. Kxf2
{[%clk 0:02:20.6]} 36... b4 {[%clk 0:01:13]} 37. Nxf4 {[%clk 0:02:18.7]} 37...
a5 {[%clk 0:01:13.7]} 38. Nxh5 {[%clk 0:02:15.4]} 38... Ba6 {[%clk 0:01:13.8]}
39. Nf6+ {[%clk 0:02:16.2]} 1-0

[Event "*** Titled Tuesday Blitz"]
[Site "Chess.com"]
[Date "2019.08.06"]
[Round "4"]
[White "GM_shahin"]
[Black "ChessQueen"]
[Result "1-0"]
[WhiteElo "2894"]
[BlackElo "2640"]
[TimeControl "180+2"]
[EndTime "13:48:06 PDT"]
[Termination "GM_shahin won by resignation"]

1. b3 {[%clk 0:03:01.5]} 1... e5 {[%clk 0:02:58.8]} 2. Bb2 {[%clk 0:03:02.9]}
2... Nc6 {[%clk 0:02:59.5]} 3. Nf3 {[%clk 0:03:04.5]} 3... d6 {[%clk 0:02:58.6]}
4. e3 {[%clk 0:03:02.4]} 4... Nf6 {[%clk 0:02:58.2]} 5. d4 {[%clk 0:03:00.4]}
5... exd4 {[%clk 0:02:48.2]} 6. Nxd4 {[%clk 0:03:02.3]} 6... Ne5 {[%clk
0:02:43.3]} 7. c4 {[%clk 0:03:00.7]} 7... g6 {[%clk 0:02:39.8]} 8. Nc3 {[%clk
0:03:01.7]} 8... Bg7 {[%clk 0:02:40.7]} 9. Be2 {[%clk 0:03:03.2]} 9... O-O
{[%clk 0:02:40.7]} 10. O-O {[%clk 0:03:04.8]} 10... Re8 {[%clk 0:02:38.8]} 11.
Rc1 {[%clk 0:03:05.1]} 11... b6 {[%clk 0:02:36.1]} 12. Nd5 {[%clk 0:02:19.9]}
12... Bb7 {[%clk 0:01:47.4]} 13. Nb5 {[%clk 0:02:20.4]} 13... c6 {[%clk
0:00:43.5]} 14. Nxf6+ {[%clk 0:02:14.3]} 14... Qxf6 {[%clk 0:00:41.7]} 15. Nc7
{[%clk 0:02:09.2]} 15... c5 {[%clk 0:00:27.1]} 16. f4 {[%clk 0:02:09.8]} 16...
Qe7 {[%clk 0:00:14.5]} 17. Nxe8 {[%clk 0:02:01.1]} 17... Nf3+ {[%clk 0:00:15.5]}
18. Bxf3 {[%clk 0:02:02.1]} 18... Bxb2 {[%clk 0:00:15.5]} 19. Bxb7 {[%clk
0:01:54.4]} 19... Qxe3+ {[%clk 0:00:14.1]} 20. Kh1 {[%clk 0:01:53.3]} 20... Rxe8
{[%clk 0:00:14.3]} 21. Rc2 {[%clk 0:01:52.2]} 1-0

[Event "*** Titled Tuesday Blitz"]
[Site "Chess.com"]
[Date "2019.08.06"]
[Round "4"]
[White "vpsetter"]
[Black "Keaton87"]
[Result "0-1"]
[WhiteElo "2640"]
[BlackElo "2625"]
[TimeControl "180+2"]
[EndTime "13:48:14 PDT"]
[Termination "Keaton87 won by resignation"]

1. e4 {[%clk 0:03:01.9]} 1... c5 {[%clk 0:03:00.9]} 2. Nf3 {[%clk 0:03:02.6]}
2... d6 {[%clk 0:03:02.2]} 3. d4 {[%clk 0:03:04.1]} 3... cxd4 {[%clk 0:03:03.6]}
4. Nxd4 {[%clk 0:03:05.7]} 4... Nf6 {[%clk 0:03:05.2]} 5. Nc3 {[%clk 0:03:06.9]}
5... g6 {[%clk 0:03:06.8]} 6. Be3 {[%clk 0:03:07.1]} 6... Bg7 {[%clk 0:03:08.3]}
7. f3 {[%clk 0:03:08.2]} 7... O-O {[%clk 0:03:10]} 8. Qd2 {[%clk 0:03:08.6]}
8... Nc6 {[%clk 0:03:11.5]} 9. Bc4 {[%clk 0:03:09.8]} 9... Bd7 {[%clk
0:03:12.4]} 10. O-O-O {[%clk 0:03:06.9]} 10... Rc8 {[%clk 0:03:13.8]} 11. Bb3
{[%clk 0:03:08.1]} 11... Nxd4 {[%clk 0:03:14.6]} 12. Bxd4 {[%clk 0:03:07.4]}
12... b5 {[%clk 0:03:16.2]} 13. Nd5 {[%clk 0:03:03.6]} 13... Nxd5 {[%clk
0:03:16.7]} 14. exd5 {[%clk 0:03:04.3]} 14... Bxd4 {[%clk 0:03:16.5]} 15. Qxd4
{[%clk 0:03:05.1]} 15... a5 {[%clk 0:03:17.8]} 16. a3 {[%clk 0:03:05.5]} 16...
b4 {[%clk 0:03:18]} 17. axb4 {[%clk 0:03:02.8]} 17... axb4 {[%clk 0:03:19.2]}
18. Kd2 {[%clk 0:02:51]} 18... Rc5 {[%clk 0:03:13.9]} 19. Ra1 {[%clk 0:02:47.6]}
19... Qc7 {[%clk 0:03:10.5]} 20. Rhe1 {[%clk 0:02:46.4]} 20... Bf5 {[%clk
0:03:08.2]} 21. Re4 {[%clk 0:01:42.2]} 21... Bxe4 {[%clk 0:03:06.9]} 22. fxe4
{[%clk 0:01:43.2]} 22... Rc8 {[%clk 0:03:04.9]} 23. Qd3 {[%clk 0:01:37.1]} 23...
Qd8 {[%clk 0:02:39.7]} 24. h4 {[%clk 0:01:28.1]} 24... Qf8 {[%clk 0:02:40.5]}
25. Qe3 {[%clk 0:01:05.8]} 25... Qg7 {[%clk 0:02:40.5]} 26. Kc1 {[%clk
0:01:06.3]} 26... Qe5 {[%clk 0:02:34.1]} 27. Ra4 {[%clk 0:01:00.4]} 27... Qh2
{[%clk 0:02:31.1]} 28. Qf2 {[%clk 0:00:47.4]} 28... Qh1+ {[%clk 0:02:27]} 29.
Kd2 {[%clk 0:00:47.9]} 29... Qb1 {[%clk 0:02:28.1]} 30. Qd4 {[%clk 0:00:17.1]}
30... Rxc2+ {[%clk 0:02:27.3]} 0-1

[Event "*** Titled Tuesday Blitz"]
[Site "Chess.com"]
[Date "2019.08.06"]
[Round "4"]
[White "NM2019"]
[Black "LuisFSiles"]
[Result "0-1"]
[WhiteElo "2074"]
[BlackElo "2189"]
[TimeControl "180+2"]
[EndTime "13:48:19 PDT"]
[Termination "LuisFSiles won on time"]

1. e4 {[%clk 0:03:01.4]} 1... e5 {[%clk 0:02:56.8]} 2. Nf3 {[%clk 0:03:02.7]}
2... Nc6 {[%clk 0:02:57.1]} 3. Bb5 {[%clk 0:03:04]} 3... a6 {[%clk 0:02:57.8]}
4. Ba4 {[%clk 0:03:04.9]} 4... Nf6 {[%clk 0:02:57]} 5. Kf1 {[%clk 0:03:06]} 5...
b5 {[%clk 0:02:40.9]} 6. Bb3 {[%clk 0:03:06.4]} 6... Be7 {[%clk 0:02:41.5]} 7.
d3 {[%clk 0:03:06.3]} 7... O-O {[%clk 0:02:40.3]} 8. g3 {[%clk 0:03:07.6]} 8...
d5 {[%clk 0:02:33.1]} 9. exd5 {[%clk 0:03:07.7]} 9... Bh3+ {[%clk 0:02:32.8]}
10. Kg1 {[%clk 0:03:07.9]} 10... Nxd5 {[%clk 0:02:33.6]} 11. Ng5 {[%clk
0:03:06.9]} 11... Bxg5 {[%clk 0:02:24.9]} 12. Bxg5 {[%clk 0:03:07.7]} 12... Qd7
{[%clk 0:02:04.1]} 13. Qf3 {[%clk 0:03:06.8]} 13... Nb6 {[%clk 0:01:48.5]} 14.
Nc3 {[%clk 0:03:05.7]} 14... Nd4 {[%clk 0:01:39.6]} 15. Qd1 {[%clk 0:03:01.3]}
15... Bg4 {[%clk 0:01:35.4]} 0-1

[Event "*** Titled Tuesday Blitz"]
[Site "Chess.com"]
[Date "2019.08.06"]
[Round "4"]
[White "Parhamov"]
[Black "Alopekos"]
[Result "1-0"]
[WhiteElo "2952"]
[BlackElo "2499"]
[TimeControl "180+2"]
[EndTime "13:48:26 PDT"]
[Termination "Parhamov won by resignation"]

1. e4 {[%clk 0:03:01.9]} 1... e5 {[%clk 0:03:00.1]} 2. Nf3 {[%clk 0:03:02.3]}
2... Nc6 {[%clk 0:03:01.4]} 3. d4 {[%clk 0:03:02.5]} 3... exd4 {[%clk
0:03:02.2]} 4. Nxd4 {[%clk 0:03:04.4]} 4... Bb4+ {[%clk 0:03:01.1]} 5. c3 {[%clk
0:03:05]} 5... Bc5 {[%clk 0:03:01.7]} 6. Be3 {[%clk 0:03:06.3]} 6... Bb6 {[%clk
0:03:00.7]} 7. Nd2 {[%clk 0:03:07.3]} 7... Nf6 {[%clk 0:02:59.1]} 8. Bd3 {[%clk
0:03:06]} 8... O-O {[%clk 0:02:59.4]} 9. O-O {[%clk 0:03:07.2]} 9... d5 {[%clk
0:03:00.5]} 10. Nxc6 {[%clk 0:03:08]} 10... bxc6 {[%clk 0:03:01.1]} 11. e5
{[%clk 0:03:06.7]} 11... Ng4 {[%clk 0:02:50.8]} 12. Bxb6 {[%clk 0:03:05.3]}
12... axb6 {[%clk 0:02:52.2]} 13. Qe2 {[%clk 0:03:04.7]} 13... Re8 {[%clk
0:02:31.1]} 14. f4 {[%clk 0:03:04.7]} 14... Qe7 {[%clk 0:01:49.8]} 15. Nf3
{[%clk 0:03:02.5]} 15... f6 {[%clk 0:00:57.4]} 16. Rae1 {[%clk 0:02:53.1]} 16...
Rxa2 {[%clk 0:00:48.3]} 17. h3 {[%clk 0:02:44.9]} 17... Nh6 {[%clk 0:00:48]} 18.
Qc2 {[%clk 0:02:46]} 18... f5 {[%clk 0:00:45.6]} 19. Nd4 {[%clk 0:02:44.5]}
19... c5 {[%clk 0:00:36.1]} 20. Qb3 {[%clk 0:02:37.4]} 20... Ra5 {[%clk
0:00:06.1]} 21. Qxd5+ {[%clk 0:02:35.1]} 21... Qf7 {[%clk 0:00:03.1]} 22. e6
{[%clk 0:02:36]} 22... Qf6 {[%clk 0:00:03.9]} 23. Nc6 {[%clk 0:02:30.6]} 23...
Bb7 {[%clk 0:00:03.9]} 24. e7+ {[%clk 0:02:27.7]} 24... Kh8 {[%clk 0:00:04.5]}
25. Re6 {[%clk 0:02:28.9]} 25... Qf7 {[%clk 0:00:03.3]} 26. Rfe1 {[%clk
0:02:25.7]} 26... Raa8 {[%clk 0:00:04.4]} 27. Bc4 {[%clk 0:02:26.2]} 27... Ng8
{[%clk 0:00:03]} 28. Nd8 {[%clk 0:02:20.9]} 28... Qh5 {[%clk 0:00:02.5]} 1-0

[Event "*** Titled Tuesday Blitz"]
[Site "Chess.com"]
[Date "2019.08.06"]
[Round "4"]
[White "BabyFacedAssasin"]
[Black "icychess54"]
[Result "1-0"]
[WhiteElo "2173"]
[BlackElo "2086"]
[TimeControl "180+2"]
[EndTime "13:48:28 PDT"]
[Termination "BabyFacedAssasin won by resignation"]

1. e4 {[%clk 0:03:01.9]} 1... c5 {[%clk 0:02:46.9]} 2. Nf3 {[%clk 0:03:02.8]}
2... d6 {[%clk 0:02:45.8]} 3. d4 {[%clk 0:03:03.7]} 3... cxd4 {[%clk 0:02:47.3]}
4. Nxd4 {[%clk 0:03:05.6]} 4... Nf6 {[%clk 0:02:48.7]} 5. Nc3 {[%clk 0:03:07.2]}
5... Nc6 {[%clk 0:02:49.9]} 6. Bg5 {[%clk 0:03:07.2]} 6... e6 {[%clk 0:02:50.7]}
7. Qd2 {[%clk 0:03:08]} 7... h6 {[%clk 0:02:51.6]} 8. Bxf6 {[%clk 0:03:03.4]}
8... gxf6 {[%clk 0:02:52.7]} 9. O-O-O {[%clk 0:03:03]} 9... a6 {[%clk
0:02:53.3]} 10. f4 {[%clk 0:03:01.8]} 10... h5 {[%clk 0:02:54.3]} 11. Kb1 {[%clk
0:02:58.6]} 11... Qc7 {[%clk 0:02:52.3]} 12. f5 {[%clk 0:02:56.3]} 12... Bh6
{[%clk 0:02:37.4]} 13. Qd3 {[%clk 0:02:45.4]} 13... Ne5 {[%clk 0:02:36]} 14. Qh3
{[%clk 0:02:37.9]} 14... Bd7 {[%clk 0:02:28.8]} 15. fxe6 {[%clk 0:02:32.2]}
15... fxe6 {[%clk 0:02:27.1]} 16. Qxh5+ {[%clk 0:02:05.6]} 16... Ke7 {[%clk
0:02:19.9]} 17. Nf5+ {[%clk 0:02:04.2]} 17... Kd8 {[%clk 0:01:42.6]} 18. Nxh6
{[%clk 0:02:02.9]} 18... Kc8 {[%clk 0:01:31]} 19. Qh4 {[%clk 0:01:50.2]} 19...
Qd8 {[%clk 0:01:16.6]} 20. Qf4 {[%clk 0:01:36.2]} 20... Qf8 {[%clk 0:00:42.7]}
21. Ng4 {[%clk 0:01:36.5]} 21... Rh4 {[%clk 0:00:44]} 22. Qxf6 {[%clk
0:01:36.9]} 22... Qg8 {[%clk 0:00:18.3]} 23. Nxe5 {[%clk 0:01:34.7]} 23... dxe5
{[%clk 0:00:19]} 24. Qxh4 {[%clk 0:01:34.3]} 1-0

[Event "*** Titled Tuesday Blitz"]
[Site "Chess.com"]
[Date "2019.08.06"]
[Round "4"]
[White "NMZanette"]
[Black "julinha97"]
[Result "0-1"]
[WhiteElo "2329"]
[BlackElo "2230"]
[TimeControl "180+2"]
[EndTime "13:48:32 PDT"]
[Termination "julinha97 won by resignation"]

1. e4 {[%clk 0:03:01.9]} 1... c5 {[%clk 0:02:58.4]} 2. Nf3 {[%clk 0:03:02.4]}
2... d6 {[%clk 0:02:59.8]} 3. d4 {[%clk 0:03:03.1]} 3... cxd4 {[%clk 0:03:01.7]}
4. Nxd4 {[%clk 0:03:04.5]} 4... Nf6 {[%clk 0:03:03.3]} 5. f3 {[%clk 0:03:05.9]}
5... e5 {[%clk 0:03:02.6]} 6. Nb3 {[%clk 0:03:06.6]} 6... a5 {[%clk 0:02:53.7]}
7. c4 {[%clk 0:03:01]} 7... Nxe4 {[%clk 0:02:22.9]} 8. fxe4 {[%clk 0:03:00.2]}
8... Qh4+ {[%clk 0:02:23.5]} 9. Kd2 {[%clk 0:03:00.7]} 9... g6 {[%clk 0:02:19]}
10. Kc2 {[%clk 0:02:47.2]} 10... Qxe4+ {[%clk 0:02:19.1]} 11. Qd3 {[%clk
0:02:42.3]} 11... Qc6 {[%clk 0:02:15.7]} 12. Qd5 {[%clk 0:02:32.8]} 12... Qc7
{[%clk 0:02:04.2]} 13. Na3 {[%clk 0:02:13.6]} 13... Nc6 {[%clk 0:02:04]} 14. Kd1
{[%clk 0:01:58.2]} 14... Nb4 {[%clk 0:02:01]} 15. Qf3 {[%clk 0:01:53]} 15... Bg7
{[%clk 0:01:55.1]} 16. Nb5 {[%clk 0:01:42.4]} 16... Qe7 {[%clk 0:01:55.3]} 17.
a3 {[%clk 0:01:38.4]} 17... e4 {[%clk 0:01:42.4]} 18. Qf2 {[%clk 0:01:25.6]}
18... Bg4+ {[%clk 0:01:38.1]} 19. Be2 {[%clk 0:01:26.6]} 19... Nd3 {[%clk
0:01:39.6]} 20. Qg3 {[%clk 0:01:23.1]} 20... Be5 {[%clk 0:01:30.5]} 21. Qe3
{[%clk 0:01:11.4]} 21... Bxe2+ {[%clk 0:01:09.9]} 22. Qxe2 {[%clk 0:01:06.2]}
22... O-O {[%clk 0:01:06.5]} 23. Qxe4 {[%clk 0:00:57.4]} 23... Nf2+ {[%clk
0:01:05.9]} 0-1